[Event "*** Titled Tuesday Blitz"]
[Site "Chess.com"]
[Date "2018.12.04"]
[Round "3"]
[White "capatl"]
[Black "kacprekt"]
[Result "1-0"]
[WhiteElo "2557"]
[BlackElo "2402"]
[TimeControl "180+2"]
[EndTime "13:37:13 PST"]
[Termination "capatl won by resignation"]

1. c4 {[%clk 0:02:52.1]} 1... g6 {[%clk 0:02:56.6]} 2. Nc3 {[%clk 0:02:53]} 2...
c5 {[%clk 0:02:49.3]} 3. g3 {[%clk 0:02:54.1]} 3... Bg7 {[%clk 0:02:50.1]} 4.
Bg2 {[%clk 0:02:55.7]} 4... Nc6 {[%clk 0:02:50.9]} 5. e3 {[%clk 0:02:57.1]} 5...
e6 {[%clk 0:02:51.1]} 6. Nge2 {[%clk 0:02:58.2]} 6... Nge7 {[%clk 0:02:52.1]} 7.
O-O {[%clk 0:02:59.1]} 7... O-O {[%clk 0:02:53]} 8. b3 {[%clk 0:02:54.3]} 8...
b6 {[%clk 0:02:48.4]} 9. Bb2 {[%clk 0:02:55.1]} 9... Bb7 {[%clk 0:02:49.7]} 10.
a3 {[%clk 0:02:37.1]} 10... Rc8 {[%clk 0:02:39.4]} 11. Rc1 {[%clk 0:02:34.6]}
11... Qc7 {[%clk 0:02:36.3]} 12. Nb5 {[%clk 0:02:33.1]} 12... Qb8 {[%clk
0:02:36.8]} 13. Bxg7 {[%clk 0:02:31.3]} 13... Kxg7 {[%clk 0:02:37.9]} 14. d4
{[%clk 0:02:32.4]} 14... a6 {[%clk 0:01:55.7]} 15. Nbc3 {[%clk 0:02:31.5]} 15...
cxd4 {[%clk 0:01:50.9]} 16. Nxd4 {[%clk 0:02:32.5]} 16... Rfd8 {[%clk 0:01:40]}
17. Nf3 {[%clk 0:01:57.6]} 17... d5 {[%clk 0:01:36]} 18. cxd5 {[%clk 0:01:33.8]}
18... Nxd5 {[%clk 0:01:35.9]} 19. Nxd5 {[%clk 0:01:31.9]} 19... Rxd5 {[%clk
0:01:34.8]} 20. Qe2 {[%clk 0:01:20.7]} 20... f6 {[%clk 0:00:59.3]} 21. Qb2
{[%clk 0:01:15.9]} 21... e5 {[%clk 0:00:50.8]} 22. Ng5 {[%clk 0:01:12.4]} 22...
Rd6 {[%clk 0:00:45.5]} 23. Ne4 {[%clk 0:01:12.7]} 23... Rd7 {[%clk 0:00:38.7]}
24. Bh3 {[%clk 0:00:58.3]} 24... f5 {[%clk 0:00:37.7]} 25. Nc3 {[%clk
0:00:51.3]} 25... Ne7 {[%clk 0:00:33.7]} 26. Rfd1 {[%clk 0:00:45.8]} 26... Rxd1+
{[%clk 0:00:29.6]} 27. Rxd1 {[%clk 0:00:45.5]} 27... Qc7 {[%clk 0:00:29.8]} 28.
Ne2 {[%clk 0:00:42.6]} 28... Bf3 {[%clk 0:00:18.2]} 29. Rc1 {[%clk 0:00:39.9]}
29... Qb8 {[%clk 0:00:16.6]} 30. Rxc8 {[%clk 0:00:40.6]} 30... Nxc8 {[%clk
0:00:17.9]} 31. Bg2 {[%clk 0:00:40.5]} 31... Bxg2 {[%clk 0:00:17.2]} 32. Kxg2
{[%clk 0:00:42.4]} 32... Qb7+ {[%clk 0:00:18.3]} 33. f3 {[%clk 0:00:43.8]} 33...
Kf6 {[%clk 0:00:19.1]} 34. Qc3 {[%clk 0:00:44]} 34... Nd6 {[%clk 0:00:19.3]} 35.
Kf2 {[%clk 0:00:45.2]} 35... Nb5 {[%clk 0:00:19]} 36. Qb4 {[%clk 0:00:44.4]}
36... Qd7 {[%clk 0:00:19.2]} 37. a4 {[%clk 0:00:44.9]} 37... Nc7 {[%clk
0:00:15]} 38. Qxb6+ {[%clk 0:00:46.1]} 38... Ne6 {[%clk 0:00:15.7]} 39. a5
{[%clk 0:00:43.9]} 39... f4 {[%clk 0:00:16.9]} 40. gxf4 {[%clk 0:00:44.5]} 40...
exf4 {[%clk 0:00:18.4]} 41. Nxf4 {[%clk 0:00:46.2]} 41... Qd2+ {[%clk 0:00:19]}
42. Ne2 {[%clk 0:00:45.6]} 42... Kf7 {[%clk 0:00:16.1]} 43. Qxa6 {[%clk
0:00:44.9]} 43... Ng5 {[%clk 0:00:17.2]} 44. Qc4+ {[%clk 0:00:45.7]} 44... Kg7
{[%clk 0:00:17.3]} 45. Qd4+ {[%clk 0:00:46.9]} 1-0

[Event "*** Titled Tuesday Blitz"]
[Site "Chess.com"]
[Date "2018.12.04"]
[Round "3"]
[White "Tjktiger"]
[Black "Gr3egor"]
[Result "1-0"]
[WhiteElo "2667"]
[BlackElo "2496"]
[TimeControl "180+2"]
[EndTime "13:37:13 PST"]
[Termination "Tjktiger won by resignation"]

1. c4 {[%clk 0:03:01.9]} 1... Nf6 {[%clk 0:02:59.1]} 2. Nc3 {[%clk 0:03:03]}
2... g6 {[%clk 0:03:00.5]} 3. g3 {[%clk 0:03:03.6]} 3... Bg7 {[%clk 0:03:01.9]}
4. Bg2 {[%clk 0:03:04.9]} 4... O-O {[%clk 0:03:03.5]} 5. d4 {[%clk 0:03:06.6]}
5... c6 {[%clk 0:03:04.1]} 6. e4 {[%clk 0:03:07]} 6... d6 {[%clk 0:02:58.9]} 7.
Nge2 {[%clk 0:03:08]} 7... e5 {[%clk 0:02:58.4]} 8. O-O {[%clk 0:03:09.1]} 8...
Re8 {[%clk 0:02:57]} 9. h3 {[%clk 0:03:09.7]} 9... Nbd7 {[%clk 0:02:55.5]} 10.
Be3 {[%clk 0:03:10.4]} 10... Qe7 {[%clk 0:02:49.5]} 11. d5 {[%clk 0:03:08.9]}
11... c5 {[%clk 0:02:47]} 12. Qd2 {[%clk 0:03:05]} 12... Rf8 {[%clk 0:02:40.1]}
13. Rae1 {[%clk 0:03:03.3]} 13... a6 {[%clk 0:02:39.4]} 14. a4 {[%clk 0:03:02]}
14... Ne8 {[%clk 0:02:35.7]} 15. f4 {[%clk 0:02:59.5]} 15... exf4 {[%clk
0:02:22.7]} 16. gxf4 {[%clk 0:02:58.1]} 16... f5 {[%clk 0:02:23.3]} 17. Ng3
{[%clk 0:02:54.3]} 17... Qh4 {[%clk 0:02:24]} 18. Bf2 {[%clk 0:02:49.6]} 18...
Qh6 {[%clk 0:02:23.2]} 19. exf5 {[%clk 0:02:48.6]} 19... gxf5 {[%clk 0:02:17.7]}
20. Nxf5 {[%clk 0:02:44.3]} 20... Rxf5 {[%clk 0:02:19.6]} 21. Rxe8+ {[%clk
0:02:45.3]} 21... Nf8 {[%clk 0:02:21.2]} 22. Rfe1 {[%clk 0:01:49]} 22... Rxf4
{[%clk 0:01:25.3]} 23. Be3 {[%clk 0:01:43.7]} 23... Bd4 {[%clk 0:01:26.2]} 24.
Bxd4 {[%clk 0:01:38.1]} 24... cxd4 {[%clk 0:01:25.7]} 25. Ne4 {[%clk 0:01:09.6]}
25... b6 {[%clk 0:00:48.1]} 26. Qxd4 {[%clk 0:00:31]} 26... Qg6 {[%clk
0:00:14.1]} 27. Qd2 {[%clk 0:00:08.3]} 27... Bxh3 {[%clk 0:00:12.4]} 28. Rxa8
{[%clk 0:00:06.8]} 28... Rg4 {[%clk 0:00:13.8]} 29. Re2 {[%clk 0:00:06.7]} 29...
Kg7 {[%clk 0:00:08.9]} 30. Qc3+ {[%clk 0:00:06.8]} 30... Kh6 {[%clk 0:00:08.4]}
31. Qxh3+ {[%clk 0:00:08]} 1-0

[Event "*** Titled Tuesday Blitz"]
[Site "Chess.com"]
[Date "2018.12.04"]
[Round "3"]
[White "sergeikim"]
[Black "dereito"]
[Result "1-0"]
[WhiteElo "2430"]
[BlackElo "2302"]
[TimeControl "180+2"]
[EndTime "13:37:16 PST"]
[Termination "sergeikim won by checkmate"]

1. d4 {[%clk 0:03:01.9]} 1... f5 {[%clk 0:02:59.1]} 2. c4 {[%clk 0:03:01.7]}
2... e6 {[%clk 0:03:00.2]} 3. g3 {[%clk 0:03:02.8]} 3... Nf6 {[%clk 0:03:01.9]}
4. Bg2 {[%clk 0:03:03.8]} 4... Be7 {[%clk 0:03:03.6]} 5. Nh3 {[%clk 0:03:04.4]}
5... O-O {[%clk 0:03:05]} 6. O-O {[%clk 0:03:05.3]} 6... d6 {[%clk 0:03:06.5]}
7. Nf4 {[%clk 0:03:03.7]} 7... c6 {[%clk 0:03:07.6]} 8. e3 {[%clk 0:03:02.6]}
8... e5 {[%clk 0:03:09]} 9. dxe5 {[%clk 0:02:59]} 9... dxe5 {[%clk 0:03:10.9]}
10. Nd3 {[%clk 0:02:59.1]} 10... e4 {[%clk 0:03:09.4]} 11. Nf4 {[%clk
0:02:59.5]} 11... Qe8 {[%clk 0:03:08.7]} 12. b3 {[%clk 0:02:51.2]} 12... g5
{[%clk 0:03:09.5]} 13. Ne2 {[%clk 0:02:49.7]} 13... Nbd7 {[%clk 0:03:09.5]} 14.
Bb2 {[%clk 0:02:49.9]} 14... Bd8 {[%clk 0:03:09.3]} 15. Qd6 {[%clk 0:02:36.4]}
15... Bb6 {[%clk 0:02:58.2]} 16. b4 {[%clk 0:02:25.1]} 16... c5 {[%clk
0:02:55.9]} 17. a3 {[%clk 0:02:18.2]} 17... Qd8 {[%clk 0:02:46.5]} 18. Qe6+
{[%clk 0:02:13.2]} 18... Rf7 {[%clk 0:02:47.5]} 19. Qxf5 {[%clk 0:02:11.3]}
19... Rg7 {[%clk 0:02:37.8]} 20. Rd1 {[%clk 0:02:06.6]} 20... Qe7 {[%clk
0:02:37.8]} 21. b5 {[%clk 0:01:46.2]} 21... Nf8 {[%clk 0:02:35.3]} 22. Qe5
{[%clk 0:01:46]} 22... Qxe5 {[%clk 0:02:28.2]} 23. Bxe5 {[%clk 0:01:46.4]} 23...
N8d7 {[%clk 0:02:28.3]} 24. Bb2 {[%clk 0:01:42.5]} 24... Re7 {[%clk 0:02:29.3]}
25. Nbc3 {[%clk 0:01:38.3]} 25... Ne5 {[%clk 0:02:30.3]} 26. Nxe4 {[%clk
0:01:36.9]} 26... Nxe4 {[%clk 0:02:30.1]} 27. Bxe4 {[%clk 0:01:36.8]} 27... Nxc4
{[%clk 0:02:31.2]} 28. Bd5+ {[%clk 0:01:37.6]} 28... Be6 {[%clk 0:02:32.6]} 29.
Bf6 {[%clk 0:01:32.3]} 29... Ree8 {[%clk 0:02:23.1]} 30. Bxg5 {[%clk 0:01:26.1]}
30... Bxd5 {[%clk 0:02:20.5]} 31. Rxd5 {[%clk 0:01:25.4]} 31... Kf7 {[%clk
0:02:11.7]} 32. Nf4 {[%clk 0:01:17.6]} 32... Ne5 {[%clk 0:02:11.9]} 33. Kg2
{[%clk 0:01:13.9]} 33... c4 {[%clk 0:02:12.4]} 34. Rc1 {[%clk 0:01:07.4]} 34...
Rac8 {[%clk 0:02:13.6]} 35. Ne2 {[%clk 0:01:01.4]} 35... Nd3 {[%clk 0:02:10.1]}
36. Rd1 {[%clk 0:00:57.3]} 36... Ke6 {[%clk 0:02:10.7]} 37. Nf4+ {[%clk
0:00:53.1]} 37... Nxf4+ {[%clk 0:02:11]} 38. Bxf4 {[%clk 0:00:54.2]} 38... c3
{[%clk 0:02:11.9]} 39. Re5+ {[%clk 0:00:53.3]} 39... Kf7 {[%clk 0:02:12.7]} 40.
Rd7+ {[%clk 0:00:47.8]} 40... Kf6 {[%clk 0:02:14]} 41. Rxe8 {[%clk 0:00:46.1]}
41... Rxe8 {[%clk 0:02:15.2]} 42. Kf3 {[%clk 0:00:44.9]} 42... c2 {[%clk
0:02:15.2]} 43. e4 {[%clk 0:00:46.2]} 43... Rc8 {[%clk 0:02:14.7]} 44. Rxh7
{[%clk 0:00:44]} 44... Rc3+ {[%clk 0:02:11.8]} 45. Kg4 {[%clk 0:00:43]} 45...
Bxf2 {[%clk 0:02:10.5]} 46. Rxb7 {[%clk 0:00:42.8]} 46... Rxa3 {[%clk 0:02:08]}
47. Rc7 {[%clk 0:00:42.4]} 47... Ra2 {[%clk 0:02:06]} 48. Rc6+ {[%clk
0:00:41.5]} 48... Ke7 {[%clk 0:02:06.9]} 49. h4 {[%clk 0:00:40.5]} 49... Bd4
{[%clk 0:01:58.6]} 50. h5 {[%clk 0:00:39.3]} 50... Kf7 {[%clk 0:01:52.8]} 51.
Kf5 {[%clk 0:00:38.1]} 51... Ra5 {[%clk 0:01:52.9]} 52. Rc7+ {[%clk 0:00:36]}
52... Kg8 {[%clk 0:01:54.2]} 53. Rxc2 {[%clk 0:00:36.4]} 53... Rxb5+ {[%clk
0:01:55.1]} 54. e5 {[%clk 0:00:37.7]} 54... a5 {[%clk 0:01:49.5]} 55. Rc8+
{[%clk 0:00:32.6]} 55... Kf7 {[%clk 0:01:49.6]} 56. Ra8 {[%clk 0:00:34]} 56...
Kg7 {[%clk 0:01:46]} 57. h6+ {[%clk 0:00:33.9]} 57... Kh7 {[%clk 0:01:46.8]} 58.
g4 {[%clk 0:00:34]} 58... Bc3 {[%clk 0:01:45.6]} 59. g5 {[%clk 0:00:34.3]} 59...
Rb6 {[%clk 0:01:46.9]} 60. g6+ {[%clk 0:00:32.4]} 60... Rxg6 {[%clk 0:01:47.8]}
61. Ra7+ {[%clk 0:00:33.6]} 61... Kh8 {[%clk 0:01:47.5]} 62. Kxg6 {[%clk
0:00:34.1]} 62... a4 {[%clk 0:01:48.9]} 63. Ra8# {[%clk 0:00:33.6]} 1-0

[Event "*** Titled Tuesday Blitz"]
[Site "Chess.com"]
[Date "2018.12.04"]
[Round "3"]
[White "Rashad_Zeynalli"]
[Black "ALeks_Ivlev"]
[Result "0-1"]
[WhiteElo "2336"]
[BlackElo "2492"]
[TimeControl "180+2"]
[EndTime "13:37:20 PST"]
[Termination "ALeks_Ivlev won by checkmate"]

1. d4 {[%clk 0:03:01.9]} 1... Nf6 {[%clk 0:02:59.2]} 2. c4 {[%clk 0:02:58.5]}
2... e6 {[%clk 0:03:01.1]} 3. Nc3 {[%clk 0:02:58.7]} 3... Bb4 {[%clk 0:03:01.5]}
4. e3 {[%clk 0:02:59.6]} 4... c5 {[%clk 0:03:01.7]} 5. Ne2 {[%clk 0:02:59.9]}
5... cxd4 {[%clk 0:03:01.6]} 6. exd4 {[%clk 0:02:59.4]} 6... O-O {[%clk
0:03:02.2]} 7. a3 {[%clk 0:02:59.8]} 7... Be7 {[%clk 0:03:02.9]} 8. d5 {[%clk
0:02:55]} 8... d6 {[%clk 0:02:57.8]} 9. Ng3 {[%clk 0:02:49.4]} 9... a5 {[%clk
0:02:58.4]} 10. Bd3 {[%clk 0:02:46.8]} 10... Na6 {[%clk 0:02:58.9]} 11. O-O
{[%clk 0:02:46.2]} 11... Nc5 {[%clk 0:02:59.4]} 12. Bc2 {[%clk 0:02:47]} 12...
Bd7 {[%clk 0:02:53.3]} 13. Bg5 {[%clk 0:02:45.6]} 13... a4 {[%clk 0:02:53.2]}
14. Re1 {[%clk 0:02:41.5]} 14... b6 {[%clk 0:02:30.2]} 15. Be3 {[%clk
0:02:34.4]} 15... Qc7 {[%clk 0:02:28.8]} 16. Rc1 {[%clk 0:02:20.8]} 16... Rfe8
{[%clk 0:02:28.7]} 17. Bxc5 {[%clk 0:02:11.8]} 17... Qxc5 {[%clk 0:02:22]} 18.
Nxa4 {[%clk 0:02:11.4]} 18... Qc7 {[%clk 0:01:48.9]} 19. Bb3 {[%clk 0:01:45.7]}
19... Bf8 {[%clk 0:01:46.5]} 20. Nc3 {[%clk 0:01:45.2]} 20... e5 {[%clk
0:01:45.1]} 21. Nce4 {[%clk 0:01:41.3]} 21... Nxe4 {[%clk 0:01:45.5]} 22. Nxe4
{[%clk 0:01:43.2]} 22... h6 {[%clk 0:01:46.5]} 23. Ng3 {[%clk 0:01:31.3]} 23...
g6 {[%clk 0:01:46.9]} 24. h4 {[%clk 0:01:17.2]} 24... f5 {[%clk 0:01:46.1]} 25.
h5 {[%clk 0:01:15.2]} 25... g5 {[%clk 0:01:46.3]} 26. Bc2 {[%clk 0:01:12.4]}
26... e4 {[%clk 0:01:47.5]} 27. f3 {[%clk 0:01:04.2]} 27... Bg7 {[%clk
0:01:42.5]} 28. fxe4 {[%clk 0:01:01.1]} 28... f4 {[%clk 0:01:41.2]} 29. Nf5
{[%clk 0:00:57.2]} 29... Bxf5 {[%clk 0:01:42]} 30. exf5 {[%clk 0:00:59.1]} 30...
Bxb2 {[%clk 0:01:43.2]} 31. Rb1 {[%clk 0:00:56.3]} 31... Bc3 {[%clk 0:01:37.3]}
32. Re6 {[%clk 0:00:52.3]} 32... Qc5+ {[%clk 0:01:33.8]} 33. Kh1 {[%clk
0:00:50.3]} 33... Be5 {[%clk 0:01:24.5]} 34. Qd3 {[%clk 0:00:47.3]} 34... Rxa3
{[%clk 0:01:19.8]} 35. Rxe8+ {[%clk 0:00:44.6]} 35... Kf7 {[%clk 0:01:20.8]} 36.
Rc8 {[%clk 0:00:25.2]} 36... Rxd3 {[%clk 0:00:57.4]} 37. Rxc5 {[%clk 0:00:20.4]}
37... Rd2 {[%clk 0:00:57.4]} 38. Rc7+ {[%clk 0:00:20.9]} 38... Kf6 {[%clk
0:00:58.2]} 39. Be4 {[%clk 0:00:21.9]} 39... g4 {[%clk 0:00:59.2]} 40. Rh7
{[%clk 0:00:19.4]} 40... Kg5 {[%clk 0:00:59.8]} 41. Rb7 {[%clk 0:00:17.6]} 41...
f3 {[%clk 0:00:57.8]} 42. gxf3 {[%clk 0:00:17.2]} 42... Rh2+ {[%clk 0:00:58.7]}
43. Kg1 {[%clk 0:00:18.5]} 43... g3 {[%clk 0:01:00.4]} 44. Rb8 {[%clk
0:00:18.3]} 44... Bd4+ {[%clk 0:01:00.4]} 45. Kf1 {[%clk 0:00:18.8]} 45... g2+
{[%clk 0:01:01.5]} 46. Ke2 {[%clk 0:00:17.1]} 46... g1=Q+ {[%clk 0:01:01.6]} 47.
Kd3 {[%clk 0:00:17.6]} 47... Qe3# {[%clk 0:01:02.6]} 0-1

[Event "*** Titled Tuesday Blitz"]
[Site "Chess.com"]
[Date "2018.12.04"]
[Round "3"]
[White "Samuray111"]
[Black "Ali_rastbod"]
[Result "1-0"]
[WhiteElo "2609"]
[BlackElo "2571"]
[TimeControl "180+2"]
[EndTime "13:37:22 PST"]
[Termination "Samuray111 won by checkmate"]

1. Nf3 {[%clk 0:02:57.6]} 1... d5 {[%clk 0:03:00.2]} 2. e3 {[%clk 0:02:58]} 2...
Nf6 {[%clk 0:03:00.2]} 3. c4 {[%clk 0:02:58.6]} 3... c6 {[%clk 0:03:00.5]} 4.
Nc3 {[%clk 0:02:59.1]} 4... g6 {[%clk 0:02:52.8]} 5. d4 {[%clk 0:02:54.7]} 5...
Bg7 {[%clk 0:02:53.8]} 6. Bd3 {[%clk 0:02:55.9]} 6... O-O {[%clk 0:02:54.8]} 7.
O-O {[%clk 0:02:56.8]} 7... Bf5 {[%clk 0:02:39]} 8. Bxf5 {[%clk 0:02:43.2]} 8...
gxf5 {[%clk 0:02:40.9]} 9. b3 {[%clk 0:02:45.1]} 9... e6 {[%clk 0:02:40.1]} 10.
a4 {[%clk 0:02:43.7]} 10... Re8 {[%clk 0:02:32.7]} 11. Ba3 {[%clk 0:02:23.1]}
11... Ne4 {[%clk 0:02:33.1]} 12. Qc2 {[%clk 0:02:18.5]} 12... Nd7 {[%clk
0:02:27.4]} 13. Rfc1 {[%clk 0:02:15.2]} 13... Qf6 {[%clk 0:02:22.3]} 14. Ne2
{[%clk 0:02:12.3]} 14... Qh6 {[%clk 0:02:14.7]} 15. Nf4 {[%clk 0:02:04.8]} 15...
Ndf6 {[%clk 0:02:07.7]} 16. h3 {[%clk 0:02:00.4]} 16... Nh5 {[%clk 0:02:08.3]}
17. Nxh5 {[%clk 0:01:59.7]} 17... Qxh5 {[%clk 0:02:10.2]} 18. Bb2 {[%clk
0:01:59.5]} 18... Bf6 {[%clk 0:02:07.1]} 19. Qd1 {[%clk 0:01:58.4]} 19... Qg6
{[%clk 0:01:49.3]} 20. Ne5 {[%clk 0:01:46.6]} 20... Bxe5 {[%clk 0:01:44.3]} 21.
dxe5 {[%clk 0:01:48.2]} 21... Kh8 {[%clk 0:01:46.2]} 22. f3 {[%clk 0:01:38.6]}
22... Rg8 {[%clk 0:01:40.1]} 23. Rc2 {[%clk 0:01:38.9]} 23... Ng5 {[%clk
0:01:33.8]} 24. Kh1 {[%clk 0:01:35.2]} 24... Qh5 {[%clk 0:01:04]} 25. Qf1 {[%clk
0:01:35]} 25... Qh4 {[%clk 0:00:59.1]} 26. cxd5 {[%clk 0:01:32]} 26... cxd5
{[%clk 0:01:01]} 27. Rd1 {[%clk 0:01:31.4]} 27... Rac8 {[%clk 0:00:50.8]} 28.
Rxc8 {[%clk 0:01:16.3]} 28... Rxc8 {[%clk 0:00:52.7]} 29. Rc1 {[%clk 0:01:15.1]}
29... Rxc1 {[%clk 0:00:46.6]} 30. Bxc1 {[%clk 0:01:14.5]} 30... Qg3 {[%clk
0:00:36]} 31. Bd2 {[%clk 0:01:12.4]} 31... Qh4 {[%clk 0:00:17]} 32. Be1 {[%clk
0:01:10.5]} 32... Qh5 {[%clk 0:00:18.1]} 33. Bb4 {[%clk 0:01:08.8]} 33... h6
{[%clk 0:00:18.8]} 34. Be7 {[%clk 0:01:06.7]} 34... Kh7 {[%clk 0:00:19.6]} 35.
Bf6 {[%clk 0:01:07.3]} 35... Kg6 {[%clk 0:00:20.8]} 36. Kh2 {[%clk 0:01:04.1]}
36... a6 {[%clk 0:00:18.8]} 37. a5 {[%clk 0:01:04.2]} 37... Kh7 {[%clk
0:00:18.8]} 38. b4 {[%clk 0:01:02.1]} 38... Qg6 {[%clk 0:00:19.7]} 39. b5 {[%clk
0:01:03.1]} 39... axb5 {[%clk 0:00:20.3]} 40. Qxb5 {[%clk 0:01:04.4]} 40... Qh5
{[%clk 0:00:20.5]} 41. Qxb7 {[%clk 0:01:01.6]} 41... Nxf3+ {[%clk 0:00:21.9]}
42. gxf3 {[%clk 0:01:02.5]} 42... Kg6 {[%clk 0:00:23.1]} 43. Qc8 {[%clk
0:00:59]} 43... Qxf3 {[%clk 0:00:24.4]} 44. Qg8+ {[%clk 0:00:59.8]} 44... Kh5
{[%clk 0:00:25.9]} 45. Qxf7# {[%clk 0:00:59.3]} 1-0

[Event "*** Titled Tuesday Blitz"]
[Site "Chess.com"]
[Date "2018.12.04"]
[Round "3"]
[White "DawidCzerw"]
[Black "Bauxi435"]
[Result "1-0"]
[WhiteElo "2250"]
[BlackElo "2386"]
[TimeControl "180+2"]
[EndTime "13:37:24 PST"]
[Termination "DawidCzerw won by checkmate"]

1. d4 {[%clk 0:03:01.9]} 1... Nf6 {[%clk 0:03:00.6]} 2. c4 {[%clk 0:03:02.4]}
2... e6 {[%clk 0:03:01.8]} 3. Nf3 {[%clk 0:03:02.8]} 3... d5 {[%clk 0:03:03.2]}
4. g3 {[%clk 0:03:02.7]} 4... dxc4 {[%clk 0:03:04.4]} 5. Bg2 {[%clk 0:03:03.1]}
5... Bd7 {[%clk 0:03:05.5]} 6. Ne5 {[%clk 0:02:51.3]} 6... Bc6 {[%clk
0:03:02.8]} 7. Nxc6 {[%clk 0:02:47.7]} 7... Nxc6 {[%clk 0:03:04.7]} 8. Bxc6+
{[%clk 0:02:48.5]} 8... bxc6 {[%clk 0:03:05.5]} 9. O-O {[%clk 0:02:50]} 9... Qd7
{[%clk 0:02:55.4]} 10. Qa4 {[%clk 0:02:16.2]} 10... c5 {[%clk 0:02:54.2]} 11.
Qxd7+ {[%clk 0:02:00.4]} 11... Nxd7 {[%clk 0:02:54.3]} 12. dxc5 {[%clk
0:02:00.7]} 12... Bxc5 {[%clk 0:02:53.4]} 13. Bd2 {[%clk 0:01:45.8]} 13... Bd4
{[%clk 0:02:42.4]} 14. Bc3 {[%clk 0:01:43.9]} 14... Bxc3 {[%clk 0:02:32.7]} 15.
Nxc3 {[%clk 0:01:29.2]} 15... Rb8 {[%clk 0:02:33.5]} 16. Rab1 {[%clk 0:01:17]}
16... Ke7 {[%clk 0:02:23.5]} 17. Rfc1 {[%clk 0:01:09]} 17... Nb6 {[%clk
0:02:19.4]} 18. Nb5 {[%clk 0:00:50.1]} 18... c6 {[%clk 0:02:01.3]} 19. Na3
{[%clk 0:00:48.2]} 19... Rhd8 {[%clk 0:01:54.3]} 20. Nxc4 {[%clk 0:00:44.5]}
20... Nxc4 {[%clk 0:01:35.7]} 21. Rxc4 {[%clk 0:00:46.4]} 21... Rd2 {[%clk
0:01:36.4]} 22. Rxc6 {[%clk 0:00:39.4]} 22... Rxe2 {[%clk 0:01:24]} 23. Rc7+
{[%clk 0:00:36.1]} 23... Kf6 {[%clk 0:01:24.6]} 24. Rxa7 {[%clk 0:00:36.2]}
24... Rbxb2 {[%clk 0:01:24.1]} 25. Rxb2 {[%clk 0:00:37.1]} 25... Rxb2 {[%clk
0:01:26]} 26. Kg2 {[%clk 0:00:31.4]} 26... g5 {[%clk 0:01:25.8]} 27. a4 {[%clk
0:00:28.2]} 27... h5 {[%clk 0:01:24.7]} 28. h3 {[%clk 0:00:26.5]} 28... Ra2
{[%clk 0:01:21.2]} 29. a5 {[%clk 0:00:26.9]} 29... Kg6 {[%clk 0:01:21.9]} 30. a6
{[%clk 0:00:27.2]} 30... e5 {[%clk 0:01:20.5]} 31. Ra8 {[%clk 0:00:26.3]} 31...
f6 {[%clk 0:01:19.3]} 32. Kf3 {[%clk 0:00:24.8]} 32... Ra3+ {[%clk 0:01:14.7]}
33. Ke4 {[%clk 0:00:23.7]} 33... Ra4+ {[%clk 0:01:16]} 34. Kd5 {[%clk
0:00:21.9]} 34... Kf5 {[%clk 0:01:17.2]} 35. a7 {[%clk 0:00:18.2]} 35... h4
{[%clk 0:01:15.3]} 36. gxh4 {[%clk 0:00:18.9]} 36... gxh4 {[%clk 0:01:16.7]} 37.
Kc6 {[%clk 0:00:20.1]} 37... Ke4 {[%clk 0:01:16.3]} 38. Kb6 {[%clk 0:00:19.9]}
38... Rb4+ {[%clk 0:01:13.5]} 39. Kc5 {[%clk 0:00:20.5]} 39... Ra4 {[%clk
0:01:14.5]} 40. Kb6 {[%clk 0:00:21.5]} 40... Rb4+ {[%clk 0:01:04.8]} 41. Ka5
{[%clk 0:00:21.8]} 41... Rb2 {[%clk 0:01:04.8]} 42. Rf8 {[%clk 0:00:21.7]} 42...
Ra2+ {[%clk 0:01:05.2]} 43. Kb6 {[%clk 0:00:23.1]} 43... Rb2+ {[%clk 0:01:05.3]}
44. Kc5 {[%clk 0:00:24.3]} 44... Rc2+ {[%clk 0:01:05.6]} 45. Kd6 {[%clk
0:00:24.9]} 45... Ra2 {[%clk 0:01:03.4]} 46. a8=Q+ {[%clk 0:00:25.3]} 46... Rxa8
{[%clk 0:01:05.3]} 47. Rxa8 {[%clk 0:00:26.4]} 47... Kf3 {[%clk 0:01:05.1]} 48.
Rf8 {[%clk 0:00:26.8]} 48... Kxf2 {[%clk 0:01:06.3]} 49. Rxf6+ {[%clk 0:00:28]}
49... Kg3 {[%clk 0:01:08.2]} 50. Kxe5 {[%clk 0:00:29.3]} 50... Kxh3 {[%clk
0:01:09.9]} 51. Rg6 {[%clk 0:00:25.2]} 51... Kh2 {[%clk 0:01:10.9]} 52. Kf4
{[%clk 0:00:26.8]} 52... h3 {[%clk 0:01:11.9]} 53. Kf3 {[%clk 0:00:27]} 53...
Kh1 {[%clk 0:01:12.5]} 54. Kg3 {[%clk 0:00:27.3]} 54... h2 {[%clk 0:01:13.4]}
55. Ra6 {[%clk 0:00:27.9]} 55... Kg1 {[%clk 0:01:14.7]} 56. Ra1# {[%clk
0:00:29.2]} 1-0